fUSD/lending_fUSD_20260309
["ID","MTS","AMOUNT","RATE_DAILY","PERIOD"]
[408027629,1773047444879,-500.0,0.00019773,2]
[408027630,1773047444888,-20664.72928418,0.0001978,2]
[408027631,1773047444911,-153.40246871,0.0001935,2]
[408027632,1773047444920,-77256.35779051,0.0001978,2]
[408027633,1773047444942,-46.2064716,0.0001978,2]
[408027634,1773047444974,-6326.98397766,0.0001978,2]
[408027640,1773047445803,-527.98949908,0.00019741,2]
[408027641,1773047445813,-975.30037282,0.0001978,2]
[408027642,1773047445988,-239752.20559607,0.0001978,2]
[408027643,1773047445999,-151.0,0.0001978,2]
[408027644,1773047446012,-151.0,0.0001978,2]
[408027645,1773047446022,-151.0,0.0001978,2]
[408027646,1773047446032,-151.0,0.0001978,2]
[408027647,1773047446042,-695.0,0.00019782,2]
[408027648,1773047446053,-500.0,0.00019782,2]
[408027649,1773047446062,-500.0,0.00019782,2]
[408027650,1773047446071,-500.0,0.00019782,2]
[408027652,1773047446083,-835.0,0.00019782,2]
[408027653,1773047446092,-500.0,0.00019782,2]
[408027654,1773047446101,-500.0,0.00019782,2]
[408027655,1773047446111,-1071.0,0.00019782,2]
[408027656,1773047446121,-580.0,0.00019782,2]
[408027657,1773047446130,-500.0,0.00019782,2]
[408027658,1773047446139,-340.06683403,0.00019782,2]
[408027659,1773047446149,-217.87375586,0.00019782,2]
[408027660,1773047446158,-508.71326845,0.00019782,2]
[408027661,1773047446167,-150.0,0.00019782,2]
[408027662,1773047446176,-1839.0,0.00019782,2]
[408027663,1773047446186,-899.0,0.00019782,2]
[408027664,1773047446195,-250.0,0.00019791,2]
[408027665,1773047446205,-2000.0,0.000198,2]
[408027666,1773047446215,-2000.0,0.000198,2]
[408027667,1773047446224,-7999.41632169,0.00019803,2]
[408027668,1773047446234,-500.0,0.00019809,2]
[408027669,1773047446243,-500.0,0.00019809,2]
[408027670,1773047446252,-617.9,0.00019809,2]
[408027671,1773047446262,-500.0,0.00019809,2]
[408027672,1773047446272,-500.0,0.00019809,2]
[408027673,1773047446282,-500.0,0.00019809,2]
[408027674,1773047446291,-500.0,0.00019809,2]
[408027675,1773047446300,-500.0,0.00019809,2]
[408027676,1773047446310,-500.0,0.00019809,2]
[408027677,1773047446319,-500.0,0.00019809,2]
[408027678,1773047446328,-500.0,0.00019809,2]
[408027679,1773047446337,-500.0,0.00019809,2]
[408027680,1773047446350,-250.0,0.0001981,2]
[408027681,1773047446359,-184.22758356,0.00019826,2]
[408027682,1773047446369,-1695.0,0.00019827,2]
[408027683,1773047446378,-2932.81,0.00019827,2]
[408027684,1773047446388,-2932.81,0.00019827,2]
[408027685,1773047446397,-4137.93,0.00019827,2]
[408027686,1773047446407,-250.0,0.00019835,2]
[408027687,1773047446418,-7999.41632169,0.00019836,2]
[408027688,1773047446427,-695.0,0.00019837,2]
[408027689,1773047446436,-500.0,0.00019837,2]
[408027690,1773047446446,-500.0,0.00019837,2]
[408027691,1773047446455,-500.0,0.00019837,2]
[408027692,1773047446465,-835.0,0.00019837,2]
[408027693,1773047446474,-500.0,0.00019837,2]
[408027694,1773047446483,-500.0,0.00019837,2]
[408027695,1773047446493,-1071.0,0.00019837,2]
[408027696,1773047446502,-580.0,0.00019837,2]
[408027697,1773047446512,-500.0,0.00019837,2]
[408027698,1773047446521,-250.0,0.00019837,2]
[408027699,1773047446530,-1839.0,0.00019837,2]
[408027700,1773047446539,-899.0,0.00019837,2]
[408027701,1773047446549,-200.0,0.0001984,2]
[408027702,1773047446558,-8911.7834,0.00019847,2]
[408027703,1773047446568,-500.0,0.00019856,2]
[408027704,1773047446578,-500.0,0.00019856,2]
[408027705,1773047446587,-7999.41632169,0.00019868,2]
[408027706,1773047446596,-253.0,0.00019871,2]
[408027707,1773047446607,-500.0,0.00019873,2]
[408027708,1773047446616,-500.0,0.00019873,2]
[408027709,1773047446626,-500.0,0.00019873,2]
[408027710,1773047446638,-250.0,0.00019874,3]
[408027711,1773047446648,-25000.0,0.00019882,3]
[408027712,1773047446659,-1206.0399436,0.00019884,2]
[408027713,1773047446669,-158.7171788,0.00019884,2]
[408027714,1773047446679,-3053.360628,0.00019884,2]
[408027715,1773047446689,-10292.3008536,0.00019884,2]
[408027716,1773047446698,-3308.554556,0.00019884,2]
[408027717,1773047446708,-151.0,0.00019886,2]
[408027718,1773047446719,-500.0,0.00019891,2]
[408027719,1773047446729,-500.0,0.00019891,2]
[408027720,1773047446738,-500.0,0.00019891,2]
[408027721,1773047446748,-500.0,0.00019891,2]
[408027722,1773047446757,-500.0,0.00019891,2]
[408027723,1773047446767,-500.0,0.00019891,2]
[408027724,1773047446776,-500.0,0.00019891,2]
[408027725,1773047446786,-500.0,0.00019891,2]
[408027726,1773047446796,-500.0,0.00019891,2]
[408027727,1773047446806,-500.0,0.00019891,2]
[408027728,1773047446815,-500.0,0.00019891,2]
[408027729,1773047446824,-250.0,0.00019891,3]
[408027730,1773047446834,-500.0,0.00019891,2]
[408027731,1773047446843,-25000.0,0.00019891,3]
[408027732,1773047446852,-695.0,0.00019892,2]
[408027733,1773047446862,-500.0,0.00019892,2]
[408027734,1773047446871,-500.0,0.00019892,2]
[408027735,1773047446880,-500.0,0.00019892,2]
[408027736,1773047446889,-835.0,0.00019892,2]
[408027737,1773047446898,-514.75697176,0.00019892,2]
[408027738,1773047446907,-587.84963494,0.00019892,2]
[408027739,1773047446917,-1071.0,0.00019892,2]
[408027740,1773047446926,-580.0,0.00019892,2]
[408027741,1773047446934,-500.0,0.00019892,2]
[408027742,1773047446944,-1839.0,0.00019892,2]
[408027743,1773047446953,-899.0,0.00019892,2]
[408027744,1773047446962,-151.0,0.00019892,2]
[408027745,1773047446971,-151.0,0.00019892,2]
[408027746,1773047446980,-500.0,0.00019899,2]
[408027747,1773047446990,-500.0,0.00019899,2]
[408027748,1773047446999,-500.0,0.00019899,2]
[408027749,1773047447044,-500.0,0.00019899,2]
[408027750,1773047447054,-500.0,0.00019899,2]
[408027751,1773047447063,-500.0,0.00019899,2]
[408027752,1773047447072,-500.0,0.00019899,2]
[408027753,1773047447102,-500.0,0.00019899,2]
[408027754,1773047447112,-500.0,0.00019899,2]
[408027755,1773047447121,-438.23827049,0.00019899,2]
[408027756,1773047447131,-385.7745986,0.00019899,2]
[408027757,1773047447140,-500.0,0.00019899,2]
[408027758,1773047447149,-421.36225386,0.00019899,2]
[408027759,1773047447158,-500.0,0.00019899,2]
[408027760,1773047447167,-500.0,0.00019899,2]
[408027761,1773047447176,-500.0,0.00019899,2]
[408027762,1773047447185,-190.59471064,0.00019899,2]
[408027763,1773047447194,-1052.1861981,0.000199,3]
[408027764,1773047447204,-2000.0,0.000199,2]
[408027765,1773047447213,-2000.0,0.000199,2]
[408027766,1773047447223,-2000.0,0.000199,2]
[408027767,1773047447232,-1371.3187804,0.000199,2]
[408027768,1773047447242,-25000.0,0.000199,3]
[408027769,1773047447251,-34.67027992,0.000199,2]
[408027770,1773047448286,-998.22301318,0.000199,2]
[408027771,1773047448296,-262.93,0.000199,2]
[408027772,1773047448305,-96.64698682,0.000199,2]
[408027773,1773047448316,-305.35814968,0.000199,2]
[408027774,1773047448398,-475.06826542,0.000199,2]
[408027775,1773047448407,-115.2053185,0.000199,3]
[408027776,1773047610492,150.0,0.0001959,120]
[408027777,1773048214452,200.0,0.00016,5]
[408027778,1773048335386,5000.01,0.0001689,2]
[408027779,1773048335407,4999.99,0.0001689,2]
[408027780,1773048346844,10000.0,0.0001689,2]
[408027781,1773048358180,0.01,0.0001689,2]
[408027782,1773048358201,9999.99,0.0001689,2]
[408027783,1773048367606,0.02,0.00014,2]
[408027784,1773048367626,198.76,0.00014,2]
[408027785,1773048370791,2635.13,0.0001689,2]
[408027787,1773048534104,479.288,0.0001689,2]
[408027797,1773048631927,-225.28442869,0.00017,5]
[408027798,1773048631937,-195.0,0.00017,2]
[408027799,1773048631947,-42.09606714,0.00017,2]
[408027800,1773048632035,-251.90393286,0.00017,2]
[408027802,1773048632349,-153.32754708,0.00017,2]
[408027803,1773048632378,-352.67245292,0.00017,2]
[408027804,1773048632399,-80.76954708,0.00017802,2]
[408027805,1773048632413,-114.23045292,0.00017802,2]
[408027806,1773048632423,-195.0,0.00017802,2]
[408027807,1773048632433,-195.0,0.00017802,2]
[408027808,1773048632443,-212.72571705,0.00018255,2]
[408027809,1773048632452,-587.28700452,0.00018255,2]
[408027810,1773048632462,-587.2870045,0.00018266,2]
[408027811,1773048632471,-587.2870045,0.00018278,2]
[408027812,1773048632480,-587.2870045,0.00018289,2]
[408027813,1773048632489,-1174.57400903,0.00018299,2]
[408027814,1773048632499,-1200.0,0.00018355,2]
[408027815,1773048632509,-277.0,0.00018355,2]
[408027816,1773048632528,-500.0,0.00018356,7]
[408027817,1773048632540,-600.0,0.00018356,7]
[408027818,1773048632550,-500.0,0.00018356,7]
[408027819,1773048632561,-500.0,0.00018389,2]
[408027820,1773048632571,-151.0,0.00018389,2]
[408027821,1773048632581,-500.0,0.00018389,2]
[408027822,1773048632591,-151.0,0.00018389,2]
[408027823,1773048632601,-500.0,0.00018389,2]
[408027824,1773048632612,-151.0,0.00018389,2]
[408027825,1773048632621,-500.0,0.00018389,2]
[408027826,1773048632631,-500.0,0.00018389,2]
[408027827,1773048632641,-151.0,0.00018389,2]
[408027828,1773048632650,-500.0,0.00018389,2]
[408027829,1773048632661,-151.0,0.00018389,2]
[408027830,1773048632671,-500.0,0.00018389,2]
[408027831,1773048632681,-151.0,0.00018389,2]
[408027832,1773048632691,-500.0,0.00018389,2]
[408027833,1773048632701,-151.0,0.00018389,2]
[408027834,1773048632711,-500.0,0.00018389,2]
[408027835,1773048632722,-151.0,0.00018389,2]
[408027836,1773048632732,-151.0,0.00018389,2]
[408027837,1773048632742,-151.0,0.00018389,2]
[408027838,1773048632751,-151.0,0.00018389,2]
[408027839,1773048632761,-500.0,0.00018389,2]
[408027840,1773048632771,-500.0,0.00018389,2]
[408027841,1773048632781,-500.0,0.00018389,2]
[408027842,1773048632791,-500.0,0.00018389,2]
[408027843,1773048632801,-500.0,0.00018389,2]
[408027844,1773048632812,-500.0,0.00018389,2]
[408027845,1773048632822,-500.0,0.00018389,2]
[408027846,1773048632832,-500.0,0.00018389,2]
[408027847,1773048632841,-495.74462624,0.00018389,2]
[408027848,1773048632851,-2961.0,0.000184,2]
[408027849,1773048632861,-1500.0,0.00018488,2]
[408027850,1773048632870,-529.62016429,0.00018498,2]
[408027851,1773048632883,-1322.79983571,0.00018498,2]
[408027852,1773048632892,-1055.04,0.00018565,2]
[408027853,1773048632901,-200.0,0.0001859,2]
[408027854,1773048632912,-1174.57400901,0.00018597,2]
[408027855,1773048632922,-150.0,0.00018604,2]
[408027856,1773048632932,-176.96,0.00018685,2]
[408027857,1773048632941,-600.0,0.000187,2]
[408027858,1773048632951,-1200.50170192,0.000187,2]
[408027859,1773048632960,-195.0,0.000187,2]
[408027860,1773048632971,-1265.83123107,0.000187,2]
[408027861,1773048632986,-1234.16876893,0.000187,2]
[408027862,1773048632996,-334.9,0.00018743,2]
[408027863,1773048633007,-500.0,0.00018777,2]
[408027864,1773048633017,-506.0,0.000188,3]
[408027865,1773048633027,-171.0,0.00018838,2]
[408027866,1773048633036,-171.0,0.00018874,2]
[408027867,1773048633046,-172.87392778,0.0001888,2]
[408027868,1773048633055,-500.0,0.00018959,2]
[408027869,1773048633065,-1428.38747117,0.00018961,2]
[408027870,1773048633078,-500.0,0.00018961,2]
[408027871,1773048633088,-174.61919141,0.00018961,2]
[408027872,1773048633098,-500.0,0.00018961,2]
[408027873,1773048633108,-500.0,0.00018961,2]
[408027874,1773048633118,-500.0,0.00018961,2]
[408027875,1773048633127,-290.26104003,0.00018961,2]
[408027876,1773048633137,-500.0,0.00018961,2]
[408027877,1773048633147,-500.0,0.00018961,2]
[408027878,1773048633157,-500.0,0.00018961,2]
[408027879,1773048633167,-500.0,0.00018961,2]
[408027880,1773048633177,-575.90742508,0.00018961,2]
[408027881,1773048633187,-150.0,0.00019029,2]
[408027882,1773048633197,-150.0,0.00019083,2]
[408027883,1773048633207,-171.0,0.00019088,2]
[408027884,1773048633217,-200.0,0.00019136,2]
[408027885,1773048633226,-339.02,0.00019178,2]
[408027886,1773048633236,-1000.0,0.00019178,2]
[408027887,1773048633245,-350.0,0.00019179,2]
[408027888,1773048633255,-350.0,0.00019181,2]
[408027889,1773048633265,-350.0,0.00019208,2]
[408027890,1773048633274,-171.0,0.00019257,2]
[408027891,1773048633284,-2530.1,0.00019258,2]
[408027892,1773048633293,-280.0,0.00019292,2]
[408027893,1773048633303,-500.0,0.00019342,2]
[408027894,1773048633317,-159.78,0.00019348,2]
[408027895,1773048633328,-153.40246871,0.0001935,2]
[408027896,1773048633337,-2806.0,0.0001936,2]
[408027897,1773048633347,-280.0,0.00019381,2]
[408027898,1773048633359,-171.0,0.00019387,2]
[408027899,1773048633368,-236.58025834,0.00019439,2]
[408027900,1773048633378,-258.09,0.0001944,2]
[408027901,1773048633389,-500.0,0.00019452,7]
[408027902,1773048633398,-600.0,0.00019452,7]
[408027903,1773048633408,-1000.0,0.00019452,2]
[408027904,1773048633419,-2000.0,0.000195,2]
[408027905,1773048633429,-181.08010149,0.00019509,2]
[408027906,1773048633438,-157.72017223,0.00019521,2]
[408027907,1773048633447,-1000.0,0.00019573,2]
[408027908,1773048633457,-159.0,0.0001959,3]
[408027909,1773048633471,-162.0,0.0001959,3]
[408027910,1773048633481,-154.0,0.0001959,3]
[408027911,1773048633491,-172.16862433,0.000196,2]
[408027912,1773048633501,-500.0,0.00019618,2]
[408027913,1773048633511,-1467.0,0.00019618,2]
[408027914,1773048633521,-150.0,0.00019618,2]
[408027915,1773048633530,-716.0,0.00019618,2]
[408027916,1773048633540,-150.0,0.00019618,2]
[408027917,1773048633549,-150.0,0.00019618,2]
[408027918,1773048633559,-150.0,0.00019618,2]
[408027919,1773048633568,-150.0,0.00019618,2]
[408027920,1773048633578,-150.0,0.00019618,2]
[408027921,1773048633588,-150.0,0.00019618,2]
[408027922,1773048633597,-150.0,0.00019618,2]
[408027923,1773048633607,-643.0,0.00019618,2]
[408027924,1773048633617,-500.0,0.00019618,2]
[408027925,1773048633627,-500.0,0.00019618,2]
[408027926,1773048633637,-500.0,0.00019618,2]
[408027927,1773048633656,-150.0,0.00019618,2]
[408027928,1773048633683,-150.0,0.00019618,2]
[408027929,1773048633703,-150.0,0.00019618,2]
[408027930,1773048633723,-150.0,0.00019618,2]
[408027931,1773048633744,-150.0,0.00019618,2]
[408027932,1773048633761,-150.0,0.00019618,2]
[408027933,1773048633781,-150.0,0.00019618,2]
[408027934,1773048633800,-150.0,0.00019618,2]
[408027935,1773048633825,-500.0,0.00019618,2]
[408027936,1773048633846,-500.0,0.00019618,2]
[408027937,1773048633868,-500.0,0.00019618,2]
[408027938,1773048633896,-500.0,0.00019618,2]
[408027939,1773048633912,-950.0,0.00019618,2]
[408027940,1773048633932,-500.0,0.00019618,2]
[408027941,1773048633945,-514.0,0.00019618,2]
[408027942,1773048633966,-630.0,0.00019618,2]
[408027943,1773048633980,-500.0,0.00019618,2]
[408027944,1773048634020,-500.0,0.00019618,2]
[408027945,1773048634043,-150.0,0.00019618,2]
[408027946,1773048634067,-150.0,0.00019618,2]
[408027947,1773048634088,-150.0,0.00019618,2]
[408027948,1773048634108,-150.0,0.00019618,2]
[408027949,1773048634127,-150.0,0.00019618,2]
[408027950,1773048634145,-150.0,0.00019618,2]
[408027951,1773048634162,-150.0,0.00019618,2]
[408027952,1773048634179,-676.749,0.00019642,2]
[408027953,1773048634196,-500.0,0.00019673,2]
[408027954,1773048634213,-1467.0,0.00019673,2]
[408027955,1773048634230,-150.0,0.00019673,2]
[408027956,1773048634247,-716.0,0.00019673,2]
[408027957,1773048634263,-150.0,0.00019673,2]
[408027958,1773048634278,-150.0,0.00019673,2]
[408027959,1773048634294,-150.0,0.00019673,2]
[408027960,1773048634310,-150.0,0.00019673,2]
[408027961,1773048634329,-643.0,0.00019673,2]
[408027962,1773048634345,-500.0,0.00019673,2]
[408027963,1773048634361,-500.0,0.00019673,2]
[408027964,1773048634377,-500.0,0.00019673,2]
[408027965,1773048634395,-150.0,0.00019673,2]
[408027966,1773048634410,-150.0,0.00019673,2]
[408027967,1773048634426,-150.0,0.00019673,2]
[408027968,1773048634442,-150.0,0.00019673,2]
[408027969,1773048634456,-150.0,0.00019673,2]
[408027970,1773048634472,-150.0,0.00019673,2]
[408027971,1773048634486,-150.0,0.00019673,2]
[408027972,1773048634503,-500.0,0.00019673,2]
[408027973,1773048634518,-500.0,0.00019673,2]
[408027974,1773048634533,-500.0,0.00019673,2]
[408027975,1773048634548,-500.0,0.00019673,2]
[408027976,1773048634564,-950.0,0.00019673,2]
[408027977,1773048634579,-500.0,0.00019673,2]
[408027978,1773048634595,-514.0,0.00019673,2]
[408027979,1773048634610,-630.0,0.00019673,2]
[408027980,1773048634625,-500.0,0.00019673,2]
[408027981,1773048634640,-500.0,0.00019673,2]
[408027982,1773048634656,-150.10489082,0.00019673,2]
[408027983,1773048634671,-150.0,0.00019673,2]
[408027984,1773048634685,-150.0,0.00019673,2]
[408027985,1773048634700,-150.0,0.00019673,2]
[408027986,1773048634714,-150.0,0.00019673,2]
[408027987,1773048634731,-334.9,0.0001968,2]
[408027988,1773048634745,-2946.52206413,0.000197,2]
[408027989,1773048634760,-630.96,0.00019711,2]
[408027990,1773048634775,-527.21,0.00019711,2]
[408027991,1773048634790,-258.09,0.00019714,2]
[408027992,1773048634805,-381.27781011,0.00019719,3]
[408027993,1773048634821,-269.11907877,0.00019726,2]
[408027994,1773048634837,-1000.0,0.00019726,2]
[408027995,1773048634852,-500.0,0.00019728,2]
[408027996,1773048634869,-1467.0,0.00019728,2]
[408027997,1773048634885,-150.0,0.00019728,2]
[408027998,1773048634901,-716.0,0.00019728,2]
[408027999,1773048634918,-200.0,0.00019728,2]
[408028000,1773048634942,-200.0,0.00019728,2]
[408028001,1773048634960,-150.0,0.00019728,2]
[408028002,1773048634976,-200.42886852,0.00019728,2]
[408028003,1773048634992,-643.0,0.00019728,2]
[408028004,1773048635008,-300.0,0.00019728,2]
[408028005,1773048635024,-228.28905429,0.00019728,2]
[408028006,1773048638030,-271.71094571,0.00019728,2]
[408028007,1773048638040,-500.0,0.00019728,2]
[408028008,1773048638050,-150.0,0.00019728,2]
[408028009,1773048638060,-150.0,0.00019728,2]
[408028010,1773048638069,-150.0,0.00019728,2]
[408028011,1773048638080,-200.0,0.00019728,2]
[408028012,1773048638090,-279.08949688,0.00019728,2]
[408028013,1773048638099,-150.0,0.00019728,2]
[408028014,1773048638110,-150.0,0.00019728,2]
[408028015,1773048638120,-500.0,0.00019728,2]
[408028016,1773048638131,-500.0,0.00019728,2]
[408028017,1773048638143,-500.0,0.00019728,2]
[408028018,1773048638154,-272.1097908,0.00019728,2]
[408028019,1773048638166,-950.0,0.00019728,2]
[408028020,1773048638175,-500.0,0.00019728,2]
[408028021,1773048638185,-514.0,0.00019728,2]
[408028022,1773048638195,-630.0,0.00019728,2]
[408028023,1773048638208,-500.0,0.00019728,2]
[408028024,1773048638217,-605.47740234,0.00019728,2]
[408028025,1773048638227,-150.0,0.00019728,2]
[408028026,1773048638236,-200.0,0.00019728,2]
[408028027,1773048638246,-200.0,0.00019728,2]
[408028028,1773048638255,-150.0,0.00019728,2]
[408028029,1773048638264,-3626.095,0.00019733,2]
[408028030,1773048638273,-181.736,0.00019733,2]
[408028031,1773048638283,-151.0,0.00019769,2]
[408028032,1773048638293,-219.05367316,0.00019782,2]
[408028033,1773048638304,-1467.0,0.00019782,2]
[408028034,1773048638315,-251.70358089,0.00019782,2]
[408028035,1773048638327,-716.0,0.00019782,2]
[408028036,1773048638338,-200.0,0.00019782,2]
[408028037,1773048638348,-643.0,0.00019782,2]
[408028038,1773048638359,-500.0,0.00019782,2]
[408028040,1773048638368,-500.0,0.00019782,2]
[408028042,1773048638377,-150.0,0.00019782,2]
[408028044,1773048638388,-150.0,0.00019782,2]
[408028045,1773048638397,-150.0,0.00019782,2]
[408028046,1773048638407,-150.0,0.00019782,2]
[408028047,1773048638416,-150.0,0.00019782,2]
[408028048,1773048638425,-500.0,0.00019782,2]
[408028049,1773048638435,-500.0,0.00019782,2]
[408028050,1773048638444,-950.0,0.00019782,2]
[408028051,1773048638453,-500.0,0.00019782,2]
[408028052,1773048638463,-514.0,0.00019782,2]
[408028053,1773048638472,-630.0,0.00019782,2]
[408028054,1773048638481,-500.0,0.00019782,2]
[408028055,1773048638490,-150.0,0.00019782,2]
[408028056,1773048638500,-150.0,0.00019782,2]
[408028057,1773048638509,-280.0,0.00019791,2]
[408028058,1773048638519,-4088.33358541,0.00019799,2]
[408028059,1773048638529,-2500.0,0.000198,2]
[408028060,1773048638540,-2000.0,0.000198,2]
[408028061,1773048638549,-2000.0,0.000198,2]
[408028062,1773048638559,-150.0,0.000198,30]
[408028063,1773048638569,-4088.33358536,0.0001981,2]
[408028064,1773048638589,-4088.33358536,0.00019821,2]
[408028065,1773048638598,-4088.33358536,0.00019833,2]
[408028066,1773048638609,-1467.0,0.00019837,2]
[408028067,1773048638618,-716.0,0.00019837,2]
[408028068,1773048638627,-643.0,0.00019837,2]
[408028069,1773048638637,-500.0,0.00019837,2]
[408028070,1773048638646,-500.0,0.00019837,2]
[408028071,1773048638656,-150.0,0.00019837,2]
[408028072,1773048638666,-150.0,0.00019837,2]
[408028073,1773048638676,-200.0,0.00019837,2]
[408028074,1773048638685,-150.0,0.00019837,2]
[408028075,1773048638695,-150.0,0.00019837,2]
[408028076,1773048638704,-500.0,0.00019837,2]
[408028077,1773048638714,-500.0,0.00019837,2]
[408028078,1773048638723,-950.0,0.00019837,2]
[408028079,1773048638733,-514.0,0.00019837,2]
[408028080,1773048638742,-630.0,0.00019837,2]
[408028081,1773048638752,-186.99459924,0.00019837,2]
[408028082,1773048638762,-150.0,0.00019837,2]
[408028083,1773048638775,-4088.33358536,0.00019844,2]
[408028084,1773048638785,-200.01,0.00019847,2]
[408028085,1773048638795,-280.0,0.0001985,2]
[408028086,1773048638804,-4088.33358536,0.00019855,2]
[408028087,1773048638814,-4088.33358536,0.00019866,2]
[408028088,1773048638824,-250.0,0.00019874,3]
[408028089,1773048638834,-4088.33358536,0.00019878,2]
[408028090,1773048638844,-949.92437648,0.0001988,2]
[408028091,1773048638853,-949.92437642,0.00019883,2]
[408028092,1773048638862,-151.0,0.00019885,2]
[408028093,1773048638872,-949.92437642,0.00019886,2]
[408028094,1773048638882,-949.92437642,0.00019889,2]
[408028095,1773048638891,-4088.33358536,0.00019889,2]
[408028096,1773048638901,-2399.82489657,0.0001989,2]
[408028097,1773048638911,-3935.35,0.0001989,2]
[408028098,1773048638921,-2399.8248965,0.00019891,2]
[408028099,1773048638930,-949.92437642,0.00019891,2]
[408028100,1773048639187,-1467.0,0.00019892,2]
[408028101,1773048639269,-716.0,0.00019892,2]
[408028102,1773048639278,-643.0,0.00019892,2]
[408028103,1773048639288,-500.0,0.00019892,2]
[408028104,1773048639297,-500.0,0.00019892,2]
[408028105,1773048639306,-160.57620522,0.00019892,2]
[408028106,1773048639319,-250.0,0.00019892,2]
[408028107,1773048639329,-250.0,0.00019892,2]
[408028108,1773048639338,-500.0,0.00019892,2]
[408028109,1773048639347,-450.19393605,0.00019892,2]
[408028110,1773048639358,-950.0,0.00019892,2]
[408028111,1773048639367,-514.0,0.00019892,2]
[408028112,1773048639376,-630.0,0.00019892,2]
[408028113,1773048639386,-250.0,0.00019892,2]
[408028114,1773048639395,-2399.8248965,0.00019892,2]
[408028115,1773048639404,-2399.8248965,0.00019893,2]
[408028116,1773048639413,-949.92437642,0.00019894,2]
[408028117,1773048639422,-2399.8248965,0.00019894,2]
[408028118,1773048639431,-180.89089116,0.00019895,2]
[408028119,1773048639440,-2399.8248965,0.00019896,2]
[408028120,1773048639449,-8266.6709305,0.00019896,2]
[408028121,1773048639458,-3040.0024988,0.00019896,2]
[408028122,1773048639468,-4424.1883201,0.00019896,2]
[408028123,1773048639478,-1951.8892291,0.00019896,2]
[408028124,1773048639487,-156.1375421,0.00019896,2]
[408028125,1773048639497,-152.0178743,0.00019896,2]
[408028126,1773048639506,-2808.9462239,0.00019896,2]
[408028127,1773048639515,-2399.8248965,0.00019897,2]
[408028128,1773048639525,-949.92437642,0.00019897,2]
[408028129,1773048639534,-2399.8248965,0.00019898,2]
[408028130,1773048639543,-2399.8248965,0.00019899,2]
[408028131,1773048639553,-24884.7946815,0.000199,3]
[408028132,1773048639563,-967.1067069,0.000199,2]
[408028133,1773048639572,-5692.52984477,0.000199,3]
[408028134,1773048639581,-278.94723792,0.000199,2]
[408028135,1773048639590,-250.0,0.000199,3]
[408028136,1773048639600,-1744.1212,0.000199,2]
[408028137,1773048639609,-4088.33358536,0.000199,2]
[408028138,1773048639618,-2399.8248965,0.000199,2]
[408028139,1773048639627,-2702.39283208,0.000199,2]
[408028140,1773048639636,-3859.29187061,0.000199,2]
[408028141,1773048639645,-949.92437642,0.000199,2]
[408028142,1773048639654,-8531.31265296,0.000199,2]
[408028143,1773048639663,-4819.04359242,0.000199,2]
[408028144,1773048639672,-500.0,0.000199,2]
[408028145,1773048639681,-1609.36,0.00019922,2]
[408028146,1773048639690,-1467.0,0.00019947,2]
[408028147,1773048639699,-716.0,0.00019947,2]
[408028148,1773048639709,-643.0,0.00019947,2]